[Event "Late-Titled-Tuesday-Blitz-May-07-2024"]
[Site "Chess.com"]
[Date "2024.05.07"]
[Round "3"]
[White "HalfIsCrayfish"]
[Black "hsd2016"]
[Result "1-0"]
[WhiteElo "2589"]
[BlackElo "2347"]
[TimeControl "180+1"]
[EndTime "14:28:30 PDT"]
[Termination "HalfIsCrayfish won by checkmate"]

1. d4 {[%clk 0:03:00.9]} 1... d5 {[%clk 0:02:47.1]} 2. c4 {[%clk 0:02:45]} 2...
c6 {[%clk 0:02:47.3]} 3. Nf3 {[%clk 0:02:43]} 3... Nf6 {[%clk 0:02:47.3]} 4. e3
{[%clk 0:02:41.2]} 4... Nbd7 {[%clk 0:02:43.8]} 5. b3 {[%clk 0:02:34.1]} 5... e6
{[%clk 0:02:43.3]} 6. Bb2 {[%clk 0:02:31]} 6... b6 {[%clk 0:02:43.1]} 7. Bd3
{[%clk 0:02:28.7]} 7... Bb7 {[%clk 0:02:43.6]} 8. O-O {[%clk 0:02:27.6]} 8... c5
{[%clk 0:02:42.4]} 9. Nbd2 {[%clk 0:02:24.8]} 9... Be7 {[%clk 0:02:42.9]} 10.
Qe2 {[%clk 0:02:24.1]} 10... O-O {[%clk 0:02:42.2]} 11. e4 {[%clk 0:02:24.3]}
11... dxe4 {[%clk 0:02:41.7]} 12. Nxe4 {[%clk 0:02:20.4]} 12... Nxe4 {[%clk
0:02:42]} 13. Bxe4 {[%clk 0:02:20.7]} 13... Bxe4 {[%clk 0:02:42.7]} 14. Qxe4
{[%clk 0:02:21.6]} 14... Nf6 {[%clk 0:02:43.2]} 15. Qe2 {[%clk 0:02:16.3]} 15...
cxd4 {[%clk 0:02:43.5]} 16. Bxd4 {[%clk 0:02:15.8]} 16... Qc7 {[%clk 0:02:39]}
17. Rad1 {[%clk 0:02:14.3]} 17... Rad8 {[%clk 0:02:37.7]} 18. Qe5 {[%clk
0:01:40.5]} 18... Qc6 {[%clk 0:02:35.5]} 19. Qg5 {[%clk 0:01:34.2]} 19... Qe4
{[%clk 0:02:22.1]} 20. Rfe1 {[%clk 0:01:26.7]} 20... Qc2 {[%clk 0:02:20.5]} 21.
Rd2 {[%clk 0:01:22.3]} 21... Qg6 {[%clk 0:02:20.4]} 22. Qxg6 {[%clk 0:01:21.6]}
22... hxg6 {[%clk 0:02:21.3]} 23. Red1 {[%clk 0:01:14.7]} 23... Bb4 {[%clk
0:02:19.1]} 24. Rd3 {[%clk 0:01:13.9]} 24... Be7 {[%clk 0:01:41.2]} 25. Ne5
{[%clk 0:01:11.7]} 25... Rc8 {[%clk 0:01:41.1]} 26. Bb2 {[%clk 0:01:08.3]} 26...
Rfd8 {[%clk 0:01:38.7]} 27. Rxd8+ {[%clk 0:01:06.9]} 27... Rxd8 {[%clk 0:01:39]}
28. Rxd8+ {[%clk 0:01:06.8]} 28... Bxd8 {[%clk 0:01:39.9]} 29. Nc6 {[%clk
0:01:07.2]} 29... Bc7 {[%clk 0:01:39.6]} 30. Nxa7 {[%clk 0:01:07.3]} 30... Ne4
{[%clk 0:01:40.2]} 31. Nb5 {[%clk 0:01:06.4]} 31... Bd8 {[%clk 0:01:40.2]} 32.
f3 {[%clk 0:01:04.9]} 32... Nc5 {[%clk 0:01:39.3]} 33. Kf1 {[%clk 0:01:03.1]}
33... Nd3 {[%clk 0:01:36.3]} 34. Bc3 {[%clk 0:00:56.5]} 34... Nc1 {[%clk
0:01:35.3]} 35. Bd2 {[%clk 0:00:54]} 35... Nxa2 {[%clk 0:01:33.1]} 36. Ke2
{[%clk 0:00:36.5]} 36... Be7 {[%clk 0:01:32.9]} 37. Kd3 {[%clk 0:00:36.8]} 37...
Nb4+ {[%clk 0:01:32.1]} 38. Bxb4 {[%clk 0:00:33.6]} 38... Bxb4 {[%clk 0:01:33]}
39. Nc3 {[%clk 0:00:26.2]} 39... Bd6 {[%clk 0:01:32.7]} 40. h3 {[%clk
0:00:24.3]} 40... Kf8 {[%clk 0:01:32.2]} 41. Na4 {[%clk 0:00:23.8]} 41... Bc7
{[%clk 0:01:32.3]} 42. Kc3 {[%clk 0:00:23.2]} 42... Ke7 {[%clk 0:01:32.6]} 43.
Kb4 {[%clk 0:00:23.9]} 43... Kd6 {[%clk 0:01:15.4]} 44. Kb5 {[%clk 0:00:23.1]}
44... Ke5 {[%clk 0:01:16.1]} 45. Nxb6 {[%clk 0:00:21.7]} 45... Kf4 {[%clk
0:01:16.8]} 46. Kc6 {[%clk 0:00:17.5]} 46... Be5 {[%clk 0:01:11.1]} 47. Nd7
{[%clk 0:00:17.1]} 47... Bd4 {[%clk 0:01:11.4]} 48. b4 {[%clk 0:00:17]} 48...
Kg3 {[%clk 0:01:11.2]} 49. b5 {[%clk 0:00:17.6]} 49... Kxg2 {[%clk 0:01:11.8]}
50. b6 {[%clk 0:00:18.3]} 50... Bf2 {[%clk 0:01:05.6]} 51. c5 {[%clk 0:00:15.1]}
51... Kxf3 {[%clk 0:01:04.6]} 52. Ne5+ {[%clk 0:00:14.6]} 52... Ke4 {[%clk
0:01:03]} 53. b7 {[%clk 0:00:15]} 53... Kxe5 {[%clk 0:01:01.7]} 54. b8=Q+ {[%clk
0:00:15.3]} 54... Kf5 {[%clk 0:01:02.3]} 55. Qb2 {[%clk 0:00:12.8]} 55... Bh4
{[%clk 0:01:00.5]} 56. Qc2+ {[%clk 0:00:12.5]} 56... Kf6 {[%clk 0:00:58.8]} 57.
Qc3+ {[%clk 0:00:11.8]} 57... e5 {[%clk 0:00:59.3]} 58. Kd5 {[%clk 0:00:11.3]}
58... g5 {[%clk 0:00:55.5]} 59. Qxe5+ {[%clk 0:00:11.5]} 59... Kg6 {[%clk
0:00:56.4]} 60. Qe4+ {[%clk 0:00:11.9]} 60... f5 {[%clk 0:00:55.7]} 61. Qe6+
{[%clk 0:00:12.2]} 61... Kh5 {[%clk 0:00:55.9]} 62. Qxf5 {[%clk 0:00:12.6]}
62... g6 {[%clk 0:00:56.4]} 63. Qf8 {[%clk 0:00:11.3]} 63... Bg3 {[%clk
0:00:56.4]} 64. Qh8# {[%clk 0:00:11.5]} 1-0

[Event "Late-Titled-Tuesday-Blitz-May-07-2024"]
[Site "Chess.com"]
[Date "2024.05.07"]
[Round "3"]
[White "NM_Koval"]
[Black "Vincefm"]
[Result "0-1"]
[WhiteElo "2242"]
[BlackElo "2497"]
[TimeControl "180+1"]
[EndTime "14:28:32 PDT"]
[Termination "Vincefm won by resignation"]

1. d4 {[%clk 0:03:00.9]} 1... Nf6 {[%clk 0:02:59.1]} 2. Nc3 {[%clk 0:03:00.8]}
2... d5 {[%clk 0:02:58.5]} 3. f3 {[%clk 0:03:01]} 3... c5 {[%clk 0:02:48.7]} 4.
e4 {[%clk 0:02:59.2]} 4... dxe4 {[%clk 0:02:41.9]} 5. d5 {[%clk 0:02:57.7]} 5...
e6 {[%clk 0:02:32.3]} 6. Bb5+ {[%clk 0:02:56.1]} 6... Bd7 {[%clk 0:02:17]} 7.
dxe6 {[%clk 0:02:57]} 7... fxe6 {[%clk 0:02:17.3]} 8. Bc4 {[%clk 0:02:56.3]}
8... Be7 {[%clk 0:02:05.7]} 9. fxe4 {[%clk 0:02:54.4]} 9... O-O {[%clk
0:01:55.3]} 10. Nf3 {[%clk 0:02:54]} 10... Nc6 {[%clk 0:01:23.5]} 11. O-O {[%clk
0:02:52.8]} 11... Na5 {[%clk 0:01:23.6]} 12. Be2 {[%clk 0:02:44.8]} 12... Bc6
{[%clk 0:01:23.4]} 13. Nd2 {[%clk 0:02:35.3]} 13... Qd4+ {[%clk 0:00:51.4]} 14.
Kh1 {[%clk 0:02:34]} 14... Bd6 {[%clk 0:00:48.7]} 15. Bf3 {[%clk 0:02:11.4]}
15... Rad8 {[%clk 0:00:34.7]} 16. Qe1 {[%clk 0:02:09.9]} 16... Qe5 {[%clk
0:00:27.1]} 17. Qh4 {[%clk 0:02:07.8]} 17... Bc7 {[%clk 0:00:15.4]} 18. Nb3
{[%clk 0:01:59.5]} 18... Nxb3 {[%clk 0:00:15.5]} 19. axb3 {[%clk 0:01:58.8]}
19... Nxe4 {[%clk 0:00:10.5]} 20. Nxe4 {[%clk 0:01:55]} 20... Bxe4 {[%clk
0:00:10.4]} 21. Bg5 {[%clk 0:01:48.9]} 21... Bxf3 {[%clk 0:00:09.8]} 22. Rxf3
{[%clk 0:01:38.6]} 22... Rxf3 {[%clk 0:00:08]} 23. Bxd8 {[%clk 0:01:34.3]} 23...
Bxd8 {[%clk 0:00:05.8]} 24. Qxd8+ {[%clk 0:01:33]} 24... Rf8 {[%clk 0:00:06.7]}
25. Qd2 {[%clk 0:01:29.5]} 25... Qxb2 {[%clk 0:00:06.8]} 26. Re1 {[%clk
0:01:28.2]} 26... Qf6 {[%clk 0:00:06.7]} 27. h3 {[%clk 0:01:27.5]} 27... h6
{[%clk 0:00:04.1]} 28. Qe3 {[%clk 0:01:27.2]} 28... b6 {[%clk 0:00:02.8]} 29. c4
{[%clk 0:01:21]} 29... e5 {[%clk 0:00:03.2]} 30. Qe4 {[%clk 0:01:21]} 30... Qf4
{[%clk 0:00:03.2]} 31. Qd5+ {[%clk 0:01:20.9]} 31... Kh8 {[%clk 0:00:03.8]} 32.
Ra1 {[%clk 0:01:19.3]} 32... Rf7 {[%clk 0:00:03.2]} 33. Rd1 {[%clk 0:01:18.1]}
33... e4 {[%clk 0:00:02.4]} 34. Re1 {[%clk 0:01:16.8]} 34... e3 {[%clk
0:00:02.8]} 35. Qd8+ {[%clk 0:01:16.7]} 35... Kh7 {[%clk 0:00:02.9]} 36. Qd3+
{[%clk 0:01:17.3]} 36... g6 {[%clk 0:00:02.5]} 37. Rxe3 {[%clk 0:01:17.4]} 37...
Qf1+ {[%clk 0:00:02.8]} 38. Kh2 {[%clk 0:01:17.5]} 38... Qxd3 {[%clk 0:00:02.5]}
39. Rxd3 {[%clk 0:01:17.2]} 39... Kg7 {[%clk 0:00:03.4]} 40. h4 {[%clk
0:01:16.8]} 40... Re7 {[%clk 0:00:03.8]} 41. Kg3 {[%clk 0:01:16.4]} 41... Kf6
{[%clk 0:00:04.4]} 42. Kf4 {[%clk 0:01:16.4]} 42... g5+ {[%clk 0:00:02.6]} 43.
hxg5+ {[%clk 0:01:17.3]} 43... hxg5+ {[%clk 0:00:03.4]} 44. Kg4 {[%clk
0:01:17.3]} 44... Re4+ {[%clk 0:00:03.8]} 45. Kf3 {[%clk 0:01:16.9]} 45... Re6
{[%clk 0:00:03]} 46. Rd7 {[%clk 0:01:15.4]} 46... Re7 {[%clk 0:00:03.3]} 47.
Rd6+ {[%clk 0:01:15.4]} 47... Kf5 {[%clk 0:00:03.7]} 48. g4+ {[%clk 0:01:14.2]}
48... Ke5 {[%clk 0:00:02.9]} 49. Rd5+ {[%clk 0:01:13.5]} 49... Kf6 {[%clk
0:00:02.6]} 50. Rf5+ {[%clk 0:01:14.2]} 50... Kg6 {[%clk 0:00:03]} 51. Rd5
{[%clk 0:01:15]} 51... Re6 {[%clk 0:00:01.7]} 52. Rd3 {[%clk 0:01:14.2]} 52...
a5 {[%clk 0:00:02.6]} 53. Rd5 {[%clk 0:01:12.9]} 53... Rf6+ {[%clk 0:00:03.5]}
54. Ke4 {[%clk 0:01:12.2]} 54... Rf4+ {[%clk 0:00:03.6]} 55. Ke5 {[%clk
0:01:12.4]} 55... Rxg4 {[%clk 0:00:04.5]} 56. Rd6+ {[%clk 0:01:13]} 56... Kh5
{[%clk 0:00:05.1]} 57. Kf5 {[%clk 0:01:13.1]} 57... Rf4+ {[%clk 0:00:05]} 58.
Ke5 {[%clk 0:01:12.8]} 58... Rf3 {[%clk 0:00:05.4]} 59. Rd8 {[%clk 0:01:12.2]}
59... Kg4 {[%clk 0:00:05.4]} 60. Ke4 {[%clk 0:01:13]} 60... Rxb3 {[%clk
0:00:05.5]} 61. Rg8 {[%clk 0:01:12]} 61... Rb4 {[%clk 0:00:05.9]} 62. Kd5 {[%clk
0:01:12.2]} 62... a4 {[%clk 0:00:06.4]} 63. Ra8 {[%clk 0:01:09.5]} 63... Kf4
{[%clk 0:00:06.6]} 64. Rf8+ {[%clk 0:01:08.7]} 64... Kg3 {[%clk 0:00:07.1]} 65.
Rg8 {[%clk 0:01:07.9]} 65... g4 {[%clk 0:00:07.6]} 66. Rg7 {[%clk 0:01:07.2]}
66... a3 {[%clk 0:00:07]} 67. Rg8 {[%clk 0:01:08.1]} 67... Ra4 {[%clk
0:00:06.5]} 0-1

[Event "Late-Titled-Tuesday-Blitz-May-07-2024"]
[Site "Chess.com"]
[Date "2024.05.07"]
[Round "3"]
[White "szachmistrz2500"]
[Black "Hasangatin_Ramil"]
[Result "0-1"]
[WhiteElo "2469"]
[BlackElo "2670"]
[TimeControl "180+1"]
[EndTime "14:28:35 PDT"]
[Termination "Hasangatin_Ramil won by resignation"]

1. d4 {[%clk 0:02:55.9]} 1... d6 {[%clk 0:02:59.6]} 2. Nf3 {[%clk 0:02:55.4]}
2... Bg4 {[%clk 0:02:59]} 3. Nbd2 {[%clk 0:02:53.2]} 3... Nf6 {[%clk 0:02:58.6]}
4. h3 {[%clk 0:02:53.4]} 4... Bh5 {[%clk 0:02:58.4]} 5. e3 {[%clk 0:02:53.8]}
5... Nbd7 {[%clk 0:02:57.6]} 6. Be2 {[%clk 0:02:54]} 6... c6 {[%clk 0:02:58]} 7.
b3 {[%clk 0:02:53.1]} 7... e5 {[%clk 0:02:58.1]} 8. Nc4 {[%clk 0:02:49.1]} 8...
e4 {[%clk 0:02:57.7]} 9. Nfd2 {[%clk 0:02:48.9]} 9... Bg6 {[%clk 0:02:57.8]} 10.
a4 {[%clk 0:02:46.5]} 10... d5 {[%clk 0:02:58]} 11. Na3 {[%clk 0:02:42]} 11...
Bd6 {[%clk 0:02:54.9]} 12. c4 {[%clk 0:02:41.7]} 12... Qe7 {[%clk 0:02:55.3]}
13. Bb2 {[%clk 0:02:37.3]} 13... h5 {[%clk 0:02:53.9]} 14. Qc2 {[%clk
0:02:35.9]} 14... h4 {[%clk 0:02:54.2]} 15. c5 {[%clk 0:02:32.6]} 15... Bc7
{[%clk 0:02:54.3]} 16. b4 {[%clk 0:02:32.9]} 16... a6 {[%clk 0:02:54.1]} 17. a5
{[%clk 0:02:29.6]} 17... Nh7 {[%clk 0:02:49]} 18. O-O-O {[%clk 0:02:28.2]} 18...
Ng5 {[%clk 0:02:48.3]} 19. Nab1 {[%clk 0:02:24.7]} 19... f5 {[%clk 0:02:47.8]}
20. Nc3 {[%clk 0:02:21.7]} 20... f4 {[%clk 0:02:46]} 21. Bg4 {[%clk 0:02:20.5]}
21... Nf6 {[%clk 0:02:44.9]} 22. Be2 {[%clk 0:02:18.5]} 22... Qf7 {[%clk
0:02:40]} 23. Na4 {[%clk 0:02:15.1]} 23... O-O {[%clk 0:02:32.2]} 24. Nb6 {[%clk
0:02:14.5]} 24... Rad8 {[%clk 0:02:31.7]} 25. Nf1 {[%clk 0:02:11.9]} 25... f3
{[%clk 0:02:28.7]} 26. gxf3 {[%clk 0:02:12.2]} 26... exf3 {[%clk 0:02:29.3]} 27.
Bd3 {[%clk 0:02:12.6]} 27... Bxd3 {[%clk 0:02:21]} 28. Qxd3 {[%clk 0:02:12.2]}
28... Nfe4 {[%clk 0:02:21.3]} 29. Qc2 {[%clk 0:02:08.8]} 29... Qf5 {[%clk
0:02:20.5]} 30. Nh2 {[%clk 0:01:32.9]} 30... Nxh3 {[%clk 0:02:18.1]} 31. Rdf1
{[%clk 0:01:32.4]} 31... Rf6 {[%clk 0:01:43.9]} 32. Bc3 {[%clk 0:01:31.6]} 32...
Rdf8 {[%clk 0:01:21.3]} 33. Be1 {[%clk 0:01:30.6]} 33... R8f7 {[%clk 0:01:21.6]}
34. Na4 {[%clk 0:01:22.6]} 34... g5 {[%clk 0:01:20.5]} 35. Nc3 {[%clk
0:01:22.6]} 35... Rg7 {[%clk 0:01:19.6]} 36. Nxe4 {[%clk 0:01:22.1]} 36... Qxe4
{[%clk 0:01:18.2]} 37. Qxe4 {[%clk 0:01:17.9]} 37... dxe4 {[%clk 0:01:18]} 38.
Ng4 {[%clk 0:01:18.2]} 38... Nxf2 {[%clk 0:01:07.6]} 39. Nxf6+ {[%clk
0:01:12.9]} 39... Kf7 {[%clk 0:01:07.7]} 40. Bxf2 {[%clk 0:00:58.8]} 40... Kxf6
{[%clk 0:01:08.6]} 41. Rfg1 {[%clk 0:00:56]} 41... Rh7 {[%clk 0:00:58.7]} 42.
Kd2 {[%clk 0:00:36.9]} 42... Kf5 {[%clk 0:00:58.9]} 43. Kc3 {[%clk 0:00:35]}
43... Bd8 {[%clk 0:00:53.4]} 44. Kc4 {[%clk 0:00:34.3]} 44... g4 {[%clk
0:00:52.1]} 45. d5 {[%clk 0:00:34]} 45... cxd5+ {[%clk 0:00:51.8]} 46. Kxd5
{[%clk 0:00:34.3]} 46... Bg5 {[%clk 0:00:42.2]} 47. c6 {[%clk 0:00:31.8]} 47...
bxc6+ {[%clk 0:00:41.7]} 48. Kxc6 {[%clk 0:00:32.2]} 48... Rh6+ {[%clk 0:00:37]}
49. Kb7 {[%clk 0:00:31.3]} 49... g3 {[%clk 0:00:37.5]} 50. Be1 {[%clk 0:00:22]}
50... Bxe3 {[%clk 0:00:33.9]} 51. Rh3 {[%clk 0:00:12.8]} 51... Bxg1 {[%clk
0:00:30.4]} 0-1

[Event "Late-Titled-Tuesday-Blitz-May-07-2024"]
[Site "Chess.com"]
[Date "2024.05.07"]
[Round "3"]
[White "Denisenko_Denis"]
[Black "HajiyevKanan"]
[Result "1-0"]
[WhiteElo "2396"]
[BlackElo "2579"]
[TimeControl "180+1"]
[EndTime "14:28:35 PDT"]
[Termination "Denisenko_Denis won by resignation"]

1. e4 {[%clk 0:03:00.9]} 1... c6 {[%clk 0:03:00]} 2. d4 {[%clk 0:03:00.4]} 2...
d5 {[%clk 0:03:00.9]} 3. e5 {[%clk 0:03:00.5]} 3... a6 {[%clk 0:03:01]} 4. Nd2
{[%clk 0:02:57.2]} 4... Bf5 {[%clk 0:03:00.7]} 5. h4 {[%clk 0:02:55.8]} 5... h5
{[%clk 0:03:00.5]} 6. Nb3 {[%clk 0:02:54.5]} 6... e6 {[%clk 0:03:00.9]} 7. Bd3
{[%clk 0:02:52.8]} 7... Ne7 {[%clk 0:02:59.6]} 8. Bg5 {[%clk 0:02:51.4]} 8...
Bxd3 {[%clk 0:02:56.8]} 9. cxd3 {[%clk 0:02:50.6]} 9... a5 {[%clk 0:02:51.2]}
10. Nf3 {[%clk 0:02:48.1]} 10... a4 {[%clk 0:02:51.5]} 11. Nbd2 {[%clk
0:02:44.4]} 11... Qb6 {[%clk 0:02:49.9]} 12. O-O {[%clk 0:02:40.1]} 12... Nf5
{[%clk 0:02:49.8]} 13. Be3 {[%clk 0:02:34.5]} 13... Be7 {[%clk 0:02:48.9]} 14.
Re1 {[%clk 0:02:33.7]} 14... Nxh4 {[%clk 0:02:48.3]} 15. Nxh4 {[%clk 0:02:29.5]}
15... Bxh4 {[%clk 0:02:49.2]} 16. Nf3 {[%clk 0:02:23.4]} 16... Be7 {[%clk
0:02:49.2]} 17. Bg5 {[%clk 0:02:20.5]} 17... Bxg5 {[%clk 0:02:48.8]} 18. Nxg5
{[%clk 0:02:20.5]} 18... Qxd4 {[%clk 0:02:49.5]} 19. Qf3 {[%clk 0:02:11.9]}
19... O-O {[%clk 0:02:21.6]} 20. Qxh5 {[%clk 0:02:07.4]} 20... Qxd3 {[%clk
0:02:20.8]} 21. Re4 {[%clk 0:01:55.6]} 21... Qxe4 {[%clk 0:02:16.7]} 22. Nxe4
{[%clk 0:01:54.8]} 22... dxe4 {[%clk 0:02:17.6]} 23. Re1 {[%clk 0:01:50.2]}
23... Nd7 {[%clk 0:01:37.9]} 24. Rxe4 {[%clk 0:01:48.9]} 24... Rfd8 {[%clk
0:01:21.9]} 25. Rh4 {[%clk 0:01:35.9]} 25... Kf8 {[%clk 0:01:21.7]} 26. Rf4
{[%clk 0:01:27.5]} 26... f5 {[%clk 0:01:13.5]} 27. g4 {[%clk 0:01:16.2]} 27...
Nxe5 {[%clk 0:00:57.7]} 28. gxf5 {[%clk 0:01:13.1]} 28... Ke7 {[%clk 0:00:36.9]}
29. fxe6 {[%clk 0:01:07.8]} 29... Rf8 {[%clk 0:00:20.7]} 30. Qxe5 {[%clk
0:01:05.8]} 30... Rxf4 {[%clk 0:00:17.2]} 31. Qxf4 {[%clk 0:01:05.1]} 31... Kxe6
{[%clk 0:00:18.1]} 32. Qc7 {[%clk 0:01:01.6]} 32... Ra7 {[%clk 0:00:14.7]} 33.
Qxg7 {[%clk 0:00:58.2]} 33... a3 {[%clk 0:00:15.2]} 34. bxa3 {[%clk 0:00:57.6]}
34... Kd5 {[%clk 0:00:15.8]} 35. Qb2 {[%clk 0:00:55.8]} 35... c5 {[%clk
0:00:15.6]} 36. Qb6 {[%clk 0:00:53.7]} 36... Rxa3 {[%clk 0:00:14.9]} 37. Qxb7+
{[%clk 0:00:53.8]} 37... Kc4 {[%clk 0:00:12.6]} 38. Qb2 {[%clk 0:00:51]} 38...
Rf3 {[%clk 0:00:08.6]} 39. Kg2 {[%clk 0:00:44.5]} 39... Rc3 {[%clk 0:00:09.1]}
40. f4 {[%clk 0:00:41.2]} 40... Kd3 {[%clk 0:00:09.7]} 41. Qb5+ {[%clk
0:00:39.6]} 41... c4 {[%clk 0:00:10.1]} 42. f5 {[%clk 0:00:38.6]} 42... Rc2+
{[%clk 0:00:09.9]} 43. Kf3 {[%clk 0:00:38.5]} 43... Rc1 {[%clk 0:00:08.6]} 44.
Qd5+ {[%clk 0:00:34.8]} 44... Kc3 {[%clk 0:00:09.2]} 45. Ke2 {[%clk 0:00:28.7]}
45... Rc2+ {[%clk 0:00:09.1]} 46. Kd1 {[%clk 0:00:27.4]} 46... Rxa2 {[%clk
0:00:09.4]} 47. f6 {[%clk 0:00:26.1]} 47... Ra1+ {[%clk 0:00:09.9]} 48. Ke2
{[%clk 0:00:25.9]} 48... Ra2+ {[%clk 0:00:10.6]} 49. Ke3 {[%clk 0:00:24.7]}
49... Ra1 {[%clk 0:00:11.4]} 50. Qe5+ {[%clk 0:00:23.7]} 50... Kc2 {[%clk
0:00:11.5]} 51. Qxa1 {[%clk 0:00:24.3]} 51... c3 {[%clk 0:00:12.2]} 52. Qxc3+
{[%clk 0:00:24.4]} 1-0

[Event "Late-Titled-Tuesday-Blitz-May-07-2024"]
[Site "Chess.com"]
[Date "2024.05.07"]
[Round "3"]
[White "Mops_2004"]
[Black "LiemLe"]
[Result "0-1"]
[WhiteElo "2804"]
[BlackElo "3077"]
[TimeControl "180+1"]
[EndTime "14:28:37 PDT"]
[Termination "LiemLe won by checkmate"]

1. g3 {[%clk 0:03:00.9]} 1... d5 {[%clk 0:02:58.5]} 2. Nf3 {[%clk 0:03:00.9]}
2... g6 {[%clk 0:02:57.7]} 3. Bg2 {[%clk 0:03:00.5]} 3... Bg7 {[%clk 0:02:58.4]}
4. d4 {[%clk 0:03:00.9]} 4... Nf6 {[%clk 0:02:57.3]} 5. c4 {[%clk 0:03:01.1]}
5... dxc4 {[%clk 0:02:55.6]} 6. O-O {[%clk 0:03:00.4]} 6... c6 {[%clk
0:02:49.5]} 7. a4 {[%clk 0:02:58.4]} 7... Ne4 {[%clk 0:02:42.4]} 8. Na3 {[%clk
0:02:47]} 8... Nd6 {[%clk 0:02:39.9]} 9. Bf4 {[%clk 0:02:35.6]} 9... O-O {[%clk
0:02:26.6]} 10. Qc1 {[%clk 0:02:35.2]} 10... Be6 {[%clk 0:02:23.6]} 11. Bh6
{[%clk 0:02:27.6]} 11... Bd5 {[%clk 0:01:36.6]} 12. Bxg7 {[%clk 0:02:26.2]}
12... Kxg7 {[%clk 0:01:37.5]} 13. Re1 {[%clk 0:02:11.2]} 13... Na6 {[%clk
0:01:37]} 14. Qf4 {[%clk 0:02:08.4]} 14... Nb4 {[%clk 0:01:31.1]} 15. Rac1
{[%clk 0:01:49.5]} 15... f6 {[%clk 0:01:24.4]} 16. Nb1 {[%clk 0:01:37.7]} 16...
b5 {[%clk 0:01:16.1]} 17. Nc3 {[%clk 0:01:37.5]} 17... Bg8 {[%clk 0:01:03.5]}
18. h4 {[%clk 0:01:34.9]} 18... Rb8 {[%clk 0:00:56.8]} 19. Nh2 {[%clk
0:01:04.5]} 19... h5 {[%clk 0:00:50.8]} 20. g4 {[%clk 0:01:04.4]} 20... Nd5
{[%clk 0:00:31.8]} 21. Qg3 {[%clk 0:00:59.8]} 21... hxg4 {[%clk 0:00:26.8]} 22.
Nxg4 {[%clk 0:01:00.1]} 22... Nf5 {[%clk 0:00:27]} 23. Qh3 {[%clk 0:00:53.9]}
23... Nf4 {[%clk 0:00:26.7]} 24. Qh2 {[%clk 0:00:33.1]} 24... Nxg2 {[%clk
0:00:26.9]} 25. Qxg2 {[%clk 0:00:30.3]} 25... Nxh4 {[%clk 0:00:25.8]} 26. Qh2
{[%clk 0:00:27.4]} 26... g5 {[%clk 0:00:21.9]} 27. Rcd1 {[%clk 0:00:27.4]} 27...
Qd7 {[%clk 0:00:20.6]} 28. Ne3 {[%clk 0:00:25.8]} 28... a6 {[%clk 0:00:16.7]}
29. f4 {[%clk 0:00:25.8]} 29... Bd5 {[%clk 0:00:15.3]} 30. Qg3 {[%clk
0:00:24.4]} 30... Ng6 {[%clk 0:00:11.7]} 31. fxg5 {[%clk 0:00:23.5]} 31... f5
{[%clk 0:00:12.3]} 32. Ncxd5 {[%clk 0:00:20.5]} 32... cxd5 {[%clk 0:00:13.2]}
33. Ng2 {[%clk 0:00:19.2]} 33... f4 {[%clk 0:00:13.5]} 34. Qf3 {[%clk
0:00:16.2]} 34... bxa4 {[%clk 0:00:13.7]} 35. e4 {[%clk 0:00:16.1]} 35... fxe3
{[%clk 0:00:11.9]} 36. Qxe3 {[%clk 0:00:16.1]} 36... Rxb2 {[%clk 0:00:12.6]} 37.
Re2 {[%clk 0:00:15.6]} 37... Rb3 {[%clk 0:00:12.8]} 38. Qd2 {[%clk 0:00:14.7]}
38... Qg4 {[%clk 0:00:12.9]} 39. Rde1 {[%clk 0:00:14.4]} 39... Nh4 {[%clk
0:00:11.9]} 40. Rxe7+ {[%clk 0:00:13.4]} 40... Kg8 {[%clk 0:00:12.5]} 41. R1e3
{[%clk 0:00:06]} 41... Rb1+ {[%clk 0:00:10.9]} 42. Kh2 {[%clk 0:00:04.9]} 42...
Nf3+ {[%clk 0:00:10.1]} 43. Rxf3 {[%clk 0:00:04.9]} 43... Qxf3 {[%clk
0:00:10.8]} 44. g6 {[%clk 0:00:04.2]} 44... Qh5+ {[%clk 0:00:11]} 45. Kg3 {[%clk
0:00:03.7]} 45... Rf3# {[%clk 0:00:11.1]} 0-1

[Event "Late-Titled-Tuesday-Blitz-May-07-2024"]
[Site "Chess.com"]
[Date "2024.05.07"]
[Round "3"]
[White "Godzillator"]
[Black "karinachess1"]
[Result "0-1"]
[WhiteElo "2343"]
[BlackElo "2589"]
[TimeControl "180+1"]
[EndTime "14:28:41 PDT"]
[Termination "karinachess1 won by resignation"]

1. c4 {[%clk 0:03:00.9]} 1... e6 {[%clk 0:02:58.7]} 2. Nc3 {[%clk 0:03:00.4]}
2... d5 {[%clk 0:02:59.2]} 3. cxd5 {[%clk 0:03:00.6]} 3... exd5 {[%clk
0:03:00.1]} 4. d4 {[%clk 0:03:00.7]} 4... c6 {[%clk 0:03:00.7]} 5. Qc2 {[%clk
0:03:00.5]} 5... Nf6 {[%clk 0:03:01.1]} 6. Bg5 {[%clk 0:03:00.5]} 6... Be7
{[%clk 0:03:01.8]} 7. e3 {[%clk 0:03:00.8]} 7... Nbd7 {[%clk 0:03:02.5]} 8. Bd3
{[%clk 0:03:01.1]} 8... h6 {[%clk 0:03:03.2]} 9. Bh4 {[%clk 0:03:01]} 9... Nh5
{[%clk 0:03:03.8]} 10. Bxe7 {[%clk 0:02:58.5]} 10... Qxe7 {[%clk 0:03:04.7]} 11.
O-O-O {[%clk 0:02:58.6]} 11... Nb6 {[%clk 0:03:04.9]} 12. Kb1 {[%clk 0:02:58.6]}
12... Bd7 {[%clk 0:03:03.1]} 13. Rc1 {[%clk 0:02:58.7]} 13... O-O-O {[%clk
0:03:02.6]} 14. Nf3 {[%clk 0:02:57.6]} 14... Kb8 {[%clk 0:03:03]} 15. Na4 {[%clk
0:02:57.6]} 15... Nxa4 {[%clk 0:03:01.2]} 16. Qxa4 {[%clk 0:02:57.7]} 16... Qf6
{[%clk 0:02:40.8]} 17. Rc3 {[%clk 0:02:50.4]} 17... Bf5 {[%clk 0:02:19.6]} 18.
Bxf5 {[%clk 0:02:40.2]} 18... Qxf5+ {[%clk 0:02:20.5]} 19. Ka1 {[%clk
0:02:40.3]} 19... Nf6 {[%clk 0:02:14.5]} 20. Ra3 {[%clk 0:02:36.8]} 20... a6
{[%clk 0:02:13]} 21. Rb3 {[%clk 0:02:37]} 21... Ka8 {[%clk 0:02:00]} 22. Rb6
{[%clk 0:02:34.1]} 22... Ka7 {[%clk 0:01:23.3]} 23. Qb4 {[%clk 0:02:25.4]} 23...
Rb8 {[%clk 0:01:23.5]} 24. Ne5 {[%clk 0:02:16.9]} 24... Ne4 {[%clk 0:01:11.3]}
25. Qa5 {[%clk 0:01:57.4]} 25... Rbc8 {[%clk 0:00:53.8]} 26. Rc1 {[%clk
0:01:53.2]} 26... c5 {[%clk 0:00:48]} 27. Nd3 {[%clk 0:01:38.1]} 27... cxd4
{[%clk 0:00:33.2]} 28. exd4 {[%clk 0:00:54.3]} 28... Rxc1+ {[%clk 0:00:28.7]}
29. Nxc1 {[%clk 0:00:54.3]} 29... Rc8 {[%clk 0:00:27]} 30. Nb3 {[%clk
0:00:50.4]} 30... Qxf2 {[%clk 0:00:21.8]} 31. Rxb7+ {[%clk 0:00:40.6]} 31...
Kxb7 {[%clk 0:00:19]} 32. Qxd5+ {[%clk 0:00:40.7]} 32... Ka7 {[%clk 0:00:12.9]}
33. Qd7+ {[%clk 0:00:39.6]} 33... Kb8 {[%clk 0:00:13]} 34. a3 {[%clk 0:00:35.3]}
34... Qf1+ {[%clk 0:00:13.2]} 35. Ka2 {[%clk 0:00:34.8]} 35... Qb5 {[%clk
0:00:13.7]} 36. Qe7 {[%clk 0:00:30.4]} 36... f5 {[%clk 0:00:12.5]} 37. d5 {[%clk
0:00:28.3]} 37... Qxd5 {[%clk 0:00:10.6]} 38. Qxg7 {[%clk 0:00:17.9]} 38... Nc5
{[%clk 0:00:05.5]} 39. Qg3+ {[%clk 0:00:11.4]} 39... Ka8 {[%clk 0:00:05.8]} 40.
Qf3 {[%clk 0:00:11.2]} 40... Qxf3 {[%clk 0:00:06.1]} 41. gxf3 {[%clk 0:00:11.4]}
41... Nxb3 {[%clk 0:00:06.8]} 42. Kxb3 {[%clk 0:00:12]} 42... Kb7 {[%clk
0:00:07.4]} 43. f4 {[%clk 0:00:12.2]} 43... Rc1 {[%clk 0:00:07.3]} 44. Kb4
{[%clk 0:00:13.1]} 44... Kb6 {[%clk 0:00:07.6]} 45. h4 {[%clk 0:00:13.5]} 45...
h5 {[%clk 0:00:07.5]} 46. b3 {[%clk 0:00:12.4]} 46... a5+ {[%clk 0:00:07.9]} 47.
Ka4 {[%clk 0:00:12.4]} 47... Rf1 {[%clk 0:00:08.6]} 0-1